fUST/lending_fUST_20250206
["ID","MTS","AMOUNT","RATE_DAILY","PERIOD"]
[351819509,1738801637941,-500.0,0.00013697,2]
[351819510,1738801637966,-500.0,0.00013697,2]
[351819511,1738801637989,-645.86072323,0.00013697,2]
[351819512,1738801638012,-500.0,0.00013697,2]
[351819513,1738801638036,-500.0,0.00013697,2]
[351819514,1738801638059,-500.0,0.00013697,2]
[351819515,1738801638082,-500.0,0.00013697,2]
[351819516,1738801638107,-500.0,0.00013697,2]
[351819517,1738801638132,-500.0,0.00013697,2]
[351819518,1738801638155,-500.0,0.00013697,2]
[351819519,1738801638180,-500.0,0.00013697,2]
[351819520,1738801638208,-500.0,0.00013697,2]
[351819521,1738801638231,-500.0,0.00013697,2]
[351819522,1738801638255,-500.0,0.00013697,2]
[351819523,1738801638287,-500.0,0.00013697,2]
[351819524,1738801638312,-499.99999999,0.00013697,2]
[351819525,1738801638337,-500.0,0.00013698,2]
[351819526,1738801638360,-500.0,0.00013698,2]
[351819527,1738801638384,-500.0,0.00013698,2]
[351819528,1738801638407,-345.92845427,0.00013698,2]
[351819529,1738801638431,-198.07942904,0.00013698,2]
[351819530,1738801638456,-186.28280467,0.00013698,2]
[351819531,1738801638478,-500.0,0.00013698,2]
[351819532,1738801638502,-500.0,0.00013698,2]
[351819533,1738801638526,-300.0,0.00013698,2]
[351819534,1738801638549,-500.0,0.00013698,2]
[351819535,1738801638573,-500.0,0.00013698,2]
[351819536,1738801638596,-500.0,0.00013698,2]
[351819537,1738801638619,-500.0,0.00013698,2]
[351819538,1738801638646,-500.0,0.00013698,2]
[351819539,1738801638671,-500.0,0.00013698,2]
[351819540,1738801638693,-500.0,0.00013698,2]
[351819541,1738801638716,-578.29816508,0.00013698,2]
[351819542,1738801638738,-500.0,0.00013698,2]
[351819543,1738801638760,-501.91241554,0.00013698,2]
[351819544,1738801638782,-501.09031443,0.00013698,2]
[351819545,1738801638804,-500.0,0.00013698,2]
[351819546,1738801638825,-502.87312435,0.00013698,2]
[351819547,1738801638846,-500.0,0.00013698,2]
[351819548,1738801638867,-501.55503743,0.00013698,2]
[351819549,1738801638888,-500.0,0.00013698,2]
[351819550,1738801638909,-502.47075794,0.00013698,2]
[351819551,1738801638931,-500.0,0.00013698,2]
[351819552,1738801638953,-663.49,0.00013698,2]
[351819553,1738801638974,-500.0,0.00013698,2]
[351819554,1738801638997,-500.0,0.00013698,2]
[351819555,1738801639019,-555.95,0.00013698,2]
[351819556,1738801639040,-500.0,0.00013698,2]
[351819557,1738801639062,-500.0,0.00013698,2]
[351819558,1738801639090,-500.0,0.00013698,2]
[351819559,1738801639113,-1274.46,0.00013698,2]
[351819560,1738801639137,-844.96,0.00013698,2]
[351819561,1738801639159,-500.0,0.00013698,2]
[351819562,1738801639181,-500.0,0.00013698,2]
[351819563,1738801639203,-500.0,0.00013698,2]
[351819564,1738801639226,-507.09,0.00013698,2]
[351819565,1738801639248,-693.39,0.00013698,2]
[351819566,1738801639271,-604.24,0.00013698,2]
[351819567,1738801639293,-500.0,0.00013698,2]
[351819568,1738801639316,-500.0,0.00013698,2]
[351819569,1738801639338,-708.9,0.00013698,2]
[351819570,1738801639361,-500.0,0.00013698,2]
[351819571,1738801639384,-500.0,0.00013698,2]
[351819572,1738801639604,-1000.0,0.00013698,2]
[351819573,1738801639627,-408.5805493,0.00013698,2]
[351819574,1738801639650,-500.0,0.00013698,2]
[351819575,1738801639672,-500.0,0.00013698,2]
[351819576,1738801639693,-567.78564341,0.00013698,2]
[351819577,1738801639716,-500.0,0.00013698,2]
[351819578,1738801639738,-500.0,0.00013698,2]
[351819579,1738801639759,-500.0,0.00013698,2]
[351819580,1738801639781,-500.0,0.00013698,2]
[351819581,1738801639801,-500.0,0.00013698,2]
[351819582,1738801639822,-500.0,0.00013698,2]
[351819583,1738801639845,-500.0,0.00013698,2]
[351819584,1738801639866,-500.0,0.00013698,2]
[351819585,1738801639887,-500.0,0.00013698,2]
[351819586,1738801639908,-500.0,0.00013698,2]
[351819587,1738801639931,-626.8495292,0.00013698,2]
[351819588,1738801639953,-500.0,0.00013698,2]
[351819589,1738801639974,-500.0,0.00013698,2]
[351819590,1738801639996,-500.0,0.00013698,2]
[351819591,1738801640018,-500.0,0.00013698,2]
[351819592,1738801640040,-500.0,0.00013698,2]
[351819593,1738801640061,-500.0,0.00013698,2]
[351819594,1738801640084,-500.0,0.00013698,2]
[351819595,1738801640109,-500.0,0.00013698,2]
[351819596,1738801640131,-500.0,0.00013698,2]
[351819597,1738801640153,-500.0,0.00013698,2]
[351819598,1738801640174,-595.58994064,0.00013698,2]
[351819599,1738801640196,-500.0,0.00013698,2]
[351819600,1738801640217,-500.0,0.00013698,2]
[351819601,1738801640238,-594.77925672,0.00013698,2]
[351819602,1738801640259,-500.0,0.00013698,2]
[351819603,1738801640281,-500.0,0.00013698,2]
[351819604,1738801640304,-500.0,0.00013698,2]
[351819605,1738801640326,-500.0,0.00013698,2]
[351819606,1738801640348,-500.0,0.00013698,2]
[351819607,1738801640369,-500.0,0.00013698,2]
[351819608,1738801640391,-500.0,0.00013698,2]
[351819609,1738801640413,-544.93240549,0.00013698,2]
[351819610,1738801640435,-500.0,0.00013698,2]
[351819611,1738801640459,-500.0,0.00013698,2]
[351819612,1738801640481,-500.0,0.00013698,2]
[351819613,1738801640503,-500.0,0.00013698,2]
[351819614,1738801640525,-271.21503122,0.00013698,2]
[351819615,1738801640548,-955.84,0.00013698,2]
[351819616,1738801640571,-502.42819887,0.00013698,2]
[351819617,1738801640593,-500.0,0.00013698,2]
[351819618,1738801640615,-500.0,0.00013698,2]
[351819619,1738801640637,-500.0,0.00013698,2]
[351819620,1738801640659,-723.85,0.00013698,2]
[351819621,1738801640680,-500.0,0.00013698,2]
[351819622,1738801640701,-500.0,0.00013698,2]
[351819623,1738801640725,-500.0,0.00013698,2]
[351819624,1738801640747,-338.5074932,0.00013698,2]
[351819628,1738801711406,160.0,0.00018489,120]
[351819632,1738801771804,160.0,0.00019173,120]
[351819810,1738801833644,-178.45839796,0.00013598,2]
[351819812,1738801833654,-300.0,0.00013697,2]
[351819814,1738801833664,-500.0,0.00013698,2]
[351819816,1738801833674,-500.0,0.00013698,2]
[351819818,1738801833684,-500.0,0.00013698,2]
[351819820,1738801833693,-500.0,0.00013698,2]
[351819822,1738801833703,-500.0,0.00013698,2]
[351819824,1738801833713,-500.0,0.00013698,2]
[351819826,1738801833722,-502.96,0.00013698,2]
[351819828,1738801833732,-500.0,0.00013698,2]
[351819830,1738801833742,-500.0,0.00013698,2]
[351819832,1738801833751,-500.0,0.00013698,2]
[351819834,1738801833762,-500.0,0.00013698,2]
[351819836,1738801833772,-999.35,0.00013698,2]
[351819838,1738801833781,-500.0,0.00013698,2]
[351819840,1738801833791,-765.17,0.00013698,2]
[351819842,1738801833801,-398.76486589,0.00013698,2]
[351819844,1738801833811,-500.0,0.00013698,2]
[351819845,1738801833821,-500.0,0.00013698,2]
[351819847,1738801833831,-335.54638015,0.00013698,2]
[351819850,1738801833844,-164.45361985,0.00013698,2]
[351819852,1738801833854,-500.0,0.00013698,2]
[351819853,1738801833865,-500.0,0.00013698,2]
[351819854,1738801833879,-500.0,0.00013698,2]
[351819855,1738801833889,-500.0,0.00013698,2]
[351819856,1738801833900,-500.0,0.00013698,2]
[351819857,1738801833910,-500.0,0.00013698,2]
[351819858,1738801833920,-500.0,0.00013698,2]
[351819859,1738801833931,-500.0,0.00013698,2]
[351819860,1738801833941,-500.0,0.00013698,2]
[351819861,1738801833951,-500.0,0.00013698,2]
[351819862,1738801833961,-500.0,0.00013698,2]
[351819863,1738801833971,-500.0,0.00013698,2]
[351819864,1738801833981,-500.0,0.00013698,2]
[351819865,1738801833991,-500.0,0.00013698,2]
[351819866,1738801834002,-500.0,0.00013698,2]
[351819867,1738801834012,-501.55642339,0.00013698,2]
[351819868,1738801834021,-266.90903336,0.00013698,2]
[351819869,1738801834031,-500.0,0.00013698,2]
[351819870,1738801834041,-500.0,0.00013698,2]
[351819871,1738801834051,-230.18554724,0.00013698,2]
[351819872,1738801834061,-501.76970131,0.00013698,2]
[351819873,1738801834070,-500.0,0.00013698,2]
[351819874,1738801834080,-500.0,0.00013698,2]
[351819875,1738801834089,-500.0,0.00013698,2]
[351819876,1738801834099,-585.66,0.00013698,2]
[351819877,1738801834109,-500.0,0.00013698,2]
[351819878,1738801834120,-631.21,0.00013698,2]
[351819879,1738801834131,-500.0,0.00013698,2]
[351819880,1738801834142,-500.0,0.00013698,2]
[351819881,1738801834156,-500.0,0.00013698,2]
[351819882,1738801834166,-500.0,0.00013698,2]
[351819883,1738801834176,-500.0,0.00013698,2]
[351819884,1738801834187,-504.88227771,0.00013698,2]
[351819885,1738801834197,-500.0,0.00013698,2]
[351819886,1738801834208,-500.0,0.00013698,2]
[351819887,1738801834218,-500.0,0.00013698,2]
[351819888,1738801834230,-500.0,0.00013698,2]
[351819889,1738801834241,-500.0,0.00013698,2]
[351819890,1738801834252,-500.0,0.00013698,2]
[351819891,1738801834264,-500.0,0.00013698,2]
[351819892,1738801834276,-504.58894395,0.00013698,2]
[351819893,1738801834286,-525.29715194,0.00013698,2]
[351819894,1738801834299,-1484.49,0.00013698,2]
[351819895,1738801834311,-501.98189567,0.00013698,2]
[351819896,1738801834321,-554.41,0.00013698,2]
[351819897,1738801834332,-500.0,0.00013698,2]
[351819898,1738801834341,-500.0,0.00013698,2]
[351819899,1738801834352,-649.02,0.00013698,2]
[351819900,1738801834362,-500.0,0.00013698,2]
[351819901,1738801834375,-500.0,0.00013698,2]
[351819902,1738801834385,-500.0,0.00013698,2]
[351819903,1738801834395,-500.0,0.00013698,2]
[351819904,1738801834405,-500.0,0.00013698,2]
[351819905,1738801834415,-500.0,0.00013698,2]
[351819906,1738801834425,-500.0,0.00013698,2]
[351819907,1738801834435,-500.0,0.00013698,2]
[351819908,1738801834445,-500.0,0.00013698,2]
[351819909,1738801834455,-500.0,0.00013698,2]
[351819910,1738801834465,-500.0,0.00013698,2]
[351819911,1738801834475,-388.39298364,0.00013698,2]
[351819912,1738801834484,-500.0,0.00013698,2]
[351819913,1738801834494,-500.0,0.00013698,2]
[351819914,1738801834503,-500.0,0.00013698,2]
[351819915,1738801834513,-500.0,0.00013698,2]
[351819916,1738801834522,-500.0,0.00013698,2]
[351819917,1738801834532,-500.0,0.00013698,2]
[351819918,1738801834541,-1327.64,0.00013698,2]
[351819919,1738801834550,-500.0,0.00013698,2]
[351819920,1738801834560,-524.36,0.00013698,2]
[351819921,1738801834570,-500.0,0.00013698,2]
[351819922,1738801834579,-500.0,0.00013698,2]
[351819923,1738801834589,-948.8,0.00013698,2]
[351819924,1738801834598,-509.19,0.00013698,2]
[351819925,1738801834607,-500.0,0.00013698,2]
[351819926,1738801834617,-504.39,0.00013698,2]
[351819927,1738801834628,-617.59084311,0.00013698,2]
[351819928,1738801834637,-500.0,0.00013698,2]
[351819929,1738801834647,-500.0,0.00013698,2]
[351819930,1738801834657,-1540.88,0.00013698,2]
[351819931,1738801834667,-500.0,0.00013698,2]
[351819932,1738801834677,-721.35,0.00013698,2]
[351819933,1738801834687,-500.0,0.00013698,2]
[351819934,1738801834696,-500.0,0.00013698,2]
[351819935,1738801834705,-183.96502009,0.00013698,2]
[351819936,1738801834715,-565.99,0.00013698,2]
[351819937,1738801834725,-500.0,0.00013698,2]
[351819938,1738801834734,-1569.32,0.00013698,2]
[351819939,1738801834743,-788.86,0.00013698,2]
[351819940,1738801834753,-501.84965997,0.00013698,2]
[351819941,1738801834762,-500.0,0.00013698,2]
[351819942,1738801834771,-500.0,0.00013698,2]
[351819943,1738801834781,-500.0,0.00013698,2]
[351819944,1738801834790,-500.0,0.00013698,2]
[351819945,1738801834799,-580.82237321,0.00013698,2]
[351819946,1738801834808,-500.0,0.00013698,2]
[351819947,1738801834817,-1055.23,0.00013698,2]
[351819948,1738801834827,-500.0,0.00013698,2]
[351819949,1738801834836,-580.52,0.00013698,2]
[351819950,1738801834845,-500.0,0.00013698,2]
[351819951,1738801834854,-500.0,0.00013698,2]
[351819952,1738801834864,-500.0,0.00013698,2]
[351819953,1738801834876,-500.0,0.00013698,2]
[351819954,1738801834885,-505.14556761,0.00013698,2]
[351819955,1738801834894,-1299.85,0.00013698,2]
[351819956,1738801834904,-500.0,0.00013698,2]
[351819957,1738801834914,-927.21,0.00013698,2]
[351819958,1738801834923,-500.0,0.00013698,2]
[351819959,1738801834933,-500.0,0.00013698,2]
[351819960,1738801834942,-654.64,0.00013698,2]
[351819961,1738801834951,-500.0,0.00013698,2]
[351819962,1738801834960,-503.28480552,0.00013698,2]
[351819963,1738801834970,-503.42511213,0.00013698,2]
[351819964,1738801834981,-500.0,0.00013698,2]
[351819965,1738801834990,-500.0,0.00013698,2]
[351819966,1738801835000,-500.0,0.00013698,2]
[351819967,1738801835009,-717.79,0.00013698,2]
[351819968,1738801835019,-591.16,0.00013698,2]
[351819969,1738801835028,-500.0,0.00013698,2]
[351819970,1738801835037,-526.06,0.00013698,2]
[351819971,1738801835047,-178.87771054,0.00013698,2]
[351819972,1738801835057,-500.0,0.00013698,2]
[351819973,1738801835066,-315.44776942,0.00013698,2]
[351819974,1738801835108,-184.55223058,0.00013698,2]
[351819975,1738801835118,-1151.06,0.00013698,2]
[351819976,1738801835128,-500.0,0.00013698,2]
[351819977,1738801835137,-1834.26094249,0.00013698,2]
[351820102,1738801839208,-888.28905751,0.00013698,2]
[351820104,1738801839217,-500.0,0.00013698,2]
[351820106,1738801839228,-500.0,0.00013698,2]
[351820108,1738801839237,-500.0,0.00013698,2]
[351820110,1738801839246,-500.0,0.00013698,2]
[351820112,1738801839256,-500.0,0.00013698,2]
[351820114,1738801839265,-500.0,0.00013698,2]
[351820116,1738801839275,-500.0,0.00013698,2]
[351820118,1738801839284,-500.0,0.00013698,2]
[351820120,1738801839293,-970.43,0.00013698,2]
[351820122,1738801839302,-500.0,0.00013698,2]
[351820124,1738801839311,-2796.15,0.00013698,2]
[351820126,1738801839321,-500.0,0.00013698,2]
[351820128,1738801839331,-500.0,0.00013698,2]
[351820130,1738801839340,-500.0,0.00013698,2]
[351820132,1738801839350,-810.26,0.00013698,2]
[351820134,1738801839361,-500.0,0.00013698,2]
[351820136,1738801839372,-500.0,0.00013698,2]
[351820138,1738801839385,-500.0,0.00013698,2]
[351820140,1738801839395,-500.0,0.00013698,2]
[351820142,1738801839406,-500.0,0.00013698,2]
[351820144,1738801839416,-500.0,0.00013698,2]
[351820146,1738801839426,-500.0,0.00013698,2]
[351820148,1738801839436,-500.0,0.00013698,2]
[351820150,1738801839446,-500.0,0.00013698,2]
[351820152,1738801839455,-500.0,0.00013698,2]
[351820154,1738801839465,-500.0,0.00013698,2]
[351820156,1738801839474,-500.0,0.00013698,2]
[351820158,1738801839483,-500.0,0.00013698,2]
[351820160,1738801839493,-1752.62,0.00013698,2]
[351820163,1738801839504,-500.0,0.00013698,2]
[351820164,1738801839513,-500.0,0.00013698,2]
[351820166,1738801839522,-500.0,0.00013698,2]
[351820169,1738801839532,-500.0,0.00013698,2]
[351820171,1738801839542,-504.72,0.00013698,2]
[351820173,1738801839553,-500.0,0.00013698,2]
[351820175,1738801839563,-639.8,0.00013698,2]
[351820177,1738801839572,-500.0,0.00013698,2]
[351820179,1738801839581,-507.76093265,0.00013698,2]
[351820181,1738801839590,-500.0,0.00013698,2]
[351820183,1738801839599,-1342.59,0.00013698,2]
[351820185,1738801839609,-500.0,0.00013698,2]
[351820187,1738801839618,-500.0,0.00013698,2]
[351820189,1738801839628,-500.0,0.00013698,2]
[351820191,1738801839638,-1278.67,0.00013698,2]
[351820193,1738801839648,-41.53868586,0.00013698,2]
[351820196,1738801839667,-458.46131414,0.00013698,2]
[351820198,1738801839677,-1108.83,0.00013698,2]
[351820200,1738801839686,-500.0,0.00013698,2]
[351820202,1738801839698,-500.0,0.00013698,2]
[351820204,1738801839708,-646.3,0.00013698,2]
[351820206,1738801839717,-500.0,0.00013698,2]
[351820208,1738801839727,-503.08340176,0.00013698,2]
[351820210,1738801839737,-502.68,0.00013698,2]
[351820212,1738801839747,-611.88,0.00013698,2]
[351820214,1738801839757,-500.0,0.00013698,2]
[351820216,1738801839766,-500.0,0.00013698,2]
[351820218,1738801839776,-500.0,0.00013698,2]
[351820220,1738801839785,-695.02,0.00013698,2]
[351820222,1738801839795,-500.0,0.00013698,2]
[351820224,1738801839805,-500.0,0.00013698,2]
[351820227,1738801839814,-503.33780884,0.00013698,2]
[351820229,1738801839824,-500.0,0.00013698,2]
[351820231,1738801839833,-536.18,0.00013698,2]
[351820233,1738801839843,-500.0,0.00013698,2]
[351820235,1738801839852,-1165.74,0.00013698,2]
[351820237,1738801839862,-748.49,0.00013698,2]
[351820239,1738801839871,-500.0,0.00013698,2]
[351820241,1738801839883,-977.79,0.00013698,2]
[351820243,1738801839893,-355.3931408,0.00013698,2]
[351820245,1738801839902,-500.0,0.00013698,2]
[351820246,1738801839911,-500.0,0.00013698,2]
[351820249,1738801839921,-683.38,0.00013698,2]
[351820251,1738801839930,-500.0,0.00013698,2]
[351820253,1738801839940,-512.77007859,0.00013698,2]
[351820255,1738801839949,-500.0,0.00013698,2]
[351820257,1738801839959,-500.0,0.00013698,2]
[351820259,1738801839969,-500.0,0.00013698,2]
[351820261,1738801839978,-231.85519623,0.00013698,2]
[351820263,1738801839987,-3341.22,0.00013698,2]
[351820265,1738801839997,-500.0,0.00013698,2]
[351820267,1738801840007,-500.0,0.00013698,2]
[351820269,1738801840016,-500.0,0.00013698,2]
[351820271,1738801840026,-500.0,0.00013698,2]
[351820273,1738801840035,-500.0,0.00013698,2]
[351820275,1738801840045,-500.0,0.00013698,2]
[351820277,1738801840055,-500.0,0.00013698,2]
[351820279,1738801840064,-617.07,0.00013698,2]
[351820281,1738801840073,-713.88,0.00013698,2]
[351820283,1738801840083,-500.0,0.00013698,2]
[351820285,1738801840092,-500.0,0.00013698,2]
[351820287,1738801840101,-500.0,0.00013698,2]
[351820289,1738801840111,-500.0,0.00013698,2]
[351820291,1738801840120,-1453.57,0.00013698,2]
[351820293,1738801840130,-791.93,0.00013698,2]
[351820295,1738801840140,-1381.66,0.00013698,2]
[351820297,1738801840150,-462.59792942,0.00013698,2]
[351820299,1738801840161,-500.0,0.00013698,2]
[351820301,1738801840171,-500.0,0.00013698,2]
[351820303,1738801840180,-500.0,0.00013698,2]
[351820305,1738801840191,-1697.96,0.00013698,2]
[351820307,1738801840200,-500.0,0.00013698,2]
[351820309,1738801840209,-1324.46,0.00013698,2]
[351820311,1738801840218,-505.87,0.00013698,2]
[351820313,1738801840229,-500.0,0.00013698,2]
[351820315,1738801840239,-500.0,0.00013698,2]
[351820317,1738801840248,-500.0,0.00013698,2]
[351820319,1738801840258,-500.0,0.00013698,2]
[351820321,1738801840267,-323.86378329,0.00013698,2]
[351820323,1738801840276,-710.31,0.00013698,2]
[351820325,1738801840285,-500.0,0.00013698,2]
[351820327,1738801840295,-500.0,0.00013698,2]
[351820329,1738801840305,-500.0,0.00013698,2]
[351820331,1738801840314,-500.0,0.00013698,2]
[351820333,1738801840323,-500.0,0.00013698,2]
[351820335,1738801840333,-500.0,0.00013698,2]
[351820337,1738801840342,-500.0,0.00013698,2]
[351820339,1738801840351,-500.0,0.00013698,2]
[351820341,1738801840360,-500.0,0.00013698,2]
[351820343,1738801840370,-500.0,0.00013698,2]
[351820345,1738801840380,-500.0,0.00013698,2]
[351820347,1738801840390,-234.74096042,0.00013698,2]
[351820349,1738801840401,-500.0,0.00013698,2]
[351820351,1738801840410,-953.77,0.00013698,2]
[351820353,1738801840419,-903.76,0.00013698,2]
[351820355,1738801840429,-672.61,0.00013698,2]
[351820357,1738801840439,-500.0,0.00013698,2]
[351820359,1738801840449,-501.21,0.00013698,2]
[351820361,1738801840458,-526.66492609,0.00013698,2]
[351820363,1738801840468,-563.01,0.00013698,2]
[351820365,1738801840477,-830.65,0.00013698,2]
[351820367,1738801840487,-780.32,0.00013698,2]
[351820369,1738801840496,-608.3,0.00013698,2]
[351820372,1738801840506,-500.0,0.00013698,2]
[351820374,1738801840516,-500.0,0.00013698,2]
[351820376,1738801840525,-500.0,0.00013698,2]
[351820378,1738801840535,-500.0,0.00013698,2]
[351820381,1738801840550,-500.0,0.00013698,2]
[351820384,1738801840559,-201.90177402,0.00013698,2]
[351820387,1738801840569,-500.0,0.00013698,2]
[351820389,1738801840578,-500.0,0.00013698,2]
[351820391,1738801840587,-500.0,0.00013698,2]
[351820393,1738801840596,-513.96,0.00013698,2]
[351820395,1738801840606,-755.74,0.00013698,2]
[351820397,1738801840615,-500.0,0.00013698,2]
[351820399,1738801840625,-2687.79,0.00013698,2]
[351820401,1738801840634,-500.0,0.00013698,2]
[351820403,1738801840643,-500.0,0.00013698,2]
[351820405,1738801840652,-500.0,0.00013698,2]
[351820407,1738801840661,-500.26325349,0.00013698,2]
[351820409,1738801840670,-915.95,0.00013698,2]
[351820411,1738801840679,-216.85421115,0.00013698,2]
[351820413,1738801840688,-801.21,0.00013698,2]
[351820415,1738801840697,-500.0,0.00013698,2]
[351820417,1738801840706,-500.0,0.00013698,2]
[351820419,1738801840716,-518.82305619,0.00013698,2]
[351820421,1738801840725,-500.0,0.00013698,2]
[351820423,1738801840734,-500.0,0.00013698,2]
[351820425,1738801840744,-500.0,0.00013698,2]
[351820427,1738801840753,-1228.82,0.00013698,2]
[351820429,1738801840762,-500.0,0.00013698,2]
[351820431,1738801840771,-618.35,0.00013698,2]
[351820434,1738801840789,-396.88942611,0.00013698,2]
[351820436,1738801840801,-2406.95,0.00013698,2]
[351820438,1738801840811,-1000.0,0.00013698,2]
[351820440,1738801840821,-500.0,0.00013698,2]
[351820442,1738801840831,-500.0,0.00013698,2]
[351820444,1738801840841,-500.0,0.00013698,2]
[351820447,1738801840850,-500.0,0.00013698,2]
[351820449,1738801840860,-500.0,0.00013698,2]
[351820451,1738801840870,-961.39,0.00013698,2]
[351820453,1738801840881,-612.72,0.00013698,2]
[351820455,1738801840891,-193.79229967,0.00013698,2]
[351820457,1738801840901,-500.0,0.00013698,2]
[351820459,1738801840910,-500.0,0.00013698,2]
[351820461,1738801840920,-500.0,0.00013698,2]
[351820463,1738801840930,-500.0,0.00013698,2]
[351820465,1738801840940,-500.0,0.00013698,2]
[351820467,1738801840950,-510.12,0.00013698,2]
[351820469,1738801840959,-592.28,0.00013698,2]
[351820471,1738801840968,-500.0,0.00013698,2]
[351820473,1738801840978,-500.0,0.00013698,2]
[351820475,1738801840987,-500.0,0.00013698,2]
[351820477,1738801840997,-500.0,0.00013698,2]
[351820480,1738801841007,-501.83177931,0.00013698,2]
[351820482,1738801841017,-999.62,0.00013698,2]
[351820484,1738801841026,-7754.91,0.00013698,2]
[351820486,1738801841036,-500.0,0.00013698,2]
[351820488,1738801841046,-35158.81,0.00013698,2]
[351820490,1738801841055,-500.0,0.00013698,2]
[351820492,1738801841065,-5132.89,0.00013698,2]
[351820494,1738801841075,-738.14,0.00013698,2]
[351820496,1738801841084,-500.0,0.00013698,2]
[351820498,1738801841095,-4913.9,0.00013698,2]
[351820500,1738801841104,-647.71755536,0.00013698,2]
[351820502,1738801841114,-500.0,0.00013698,2]
[351820503,1738801841125,-500.0,0.00013698,2]
[351820504,1738801841135,-500.0,0.00013698,2]
[351820505,1738801841145,-1136.84,0.00013698,2]
[351820506,1738801841157,-1396.49,0.00013698,2]
[351820507,1738801841167,-2388.4,0.00013698,2]
[351820508,1738801841177,-500.0,0.00013698,2]
[351820509,1738801841187,-4237.28,0.00013698,2]
[351820510,1738801841197,-500.0,0.00013698,2]
[351820511,1738801841207,-198.34818467,0.00013698,2]
[351820512,1738801841220,-972.98,0.00013698,2]
[351820513,1738801841230,-500.0,0.00013698,2]
[351820514,1738801841241,-1375.94,0.00013698,2]
[351820515,1738801841250,-916.01,0.00013698,2]
[351820516,1738801841260,-500.0,0.00013698,2]
[351820518,1738801841270,-500.41,0.00013698,2]
[351820520,1738801841279,-1934.31,0.00013698,2]
[351820522,1738801841288,-540.18,0.00013698,2]
[351820524,1738801841298,-500.0,0.00013698,2]
[351820526,1738801841308,-506.99,0.00013698,2]
[351820528,1738801841321,-2208.22,0.00013698,2]
[351820530,1738801841331,-500.0,0.00013698,2]
[351820532,1738801841341,-500.0,0.00013698,2]
[351820533,1738801841350,-500.0,0.00013698,2]
[351820535,1738801841360,-500.0,0.00013698,2]
[351820536,1738801841369,-670.9,0.00013698,2]
[351820537,1738801841381,-500.0,0.00013698,2]
[351820538,1738801841391,-850.9,0.00013698,2]
[351820539,1738801841400,-500.0,0.00013698,2]
[351820540,1738801841411,-806.3,0.00013698,2]
[351820541,1738801841421,-500.0,0.00013698,2]
[351820542,1738801841431,-500.0,0.00013698,2]
[351820543,1738801841441,-6805.75,0.00013698,2]
[351820544,1738801841452,-500.0,0.00013698,2]
[351820545,1738801841462,-500.0,0.00013698,2]
[351820546,1738801841472,-500.0,0.00013698,2]
[351820547,1738801841482,-500.0,0.00013698,2]
[351820548,1738801841492,-500.0,0.00013698,2]
[351820549,1738801841502,-1351.45,0.00013698,2]
[351820550,1738801841511,-500.0,0.00013698,2]